{"text_format":"2","workbook":"xlsx","n_sheets":3,"sheets":["Főösszesítő","Karbantartási díj","Vegyszer díj"],"not_rendered":{"charts":0,"images":0,"macros":0,"external_links":0,"defined_names":0,"comments":0,"pivot_tables":0},"unopened":[],"bounds":{"document_bytes":16777216,"sheet_cells":100000,"run_cost":"one","rows_first":2000,"rows_last":500,"rows_between":2000,"halvings":0,"cell_chars":16384,"cell_head_chars":4096},"cells_cut":0,"cells_raw":0,"read":"whole","date_system":"1900"}

{"sheet":"Főösszesítő","index":0,"n_rows":24,"n_cols":3,"rows_kept":24,"cut":false,"hidden":false,"merged":[[12,2,12,3],[16,2,16,3],[17,2,17,3],[18,2,18,3],[19,0,19,3],[5,0,5,3],[8,2,8,3],[9,2,9,3],[10,2,10,3],[11,2,11,3],[0,0,0,3],[1,0,1,3],[2,0,2,3],[3,0,3,3],[4,0,4,3]]}
["SZEGEDI TUDOMÁNYEGYETEM"]
[]
[]
[]
[]
[]
[null,null,"Kelt:"]
[]
["Szegedi Tudományegyetem                ",null,"Készítette:"]
["Műszaki Igazgatóság                    ",null,"Cégnév"]
["Műszaki Üzemeltetési Részleg         ",null,"Székhely"]
["6725 Szeged, Tisza Lajos krt. 107.     ",null,"Kapcsolattartó"]
["                                       ",null,"Elérhetőség"]
["                                       ",null,"                                       "]
["A munka tárgya:                       ",null,"                                       "]
["Dr. Bugyi István Kórház vízellátó rendszer havi karbantartása, ellenőrzése"]
[]
["                                                                              "]
[]
["Költségvetés főösszesítő"]
[null,"Nettó ár","Bruttó ár"]
["Karbantartási díj (18 hónapra)",{"$f":"SUM('Karbantartási díj'!C21:C22)","v":0},{"$f":"SUM('Karbantartási díj'!C23:C24)","v":0}]
["Vegyszer díj (18 hónapra)",{"$f":"SUM('Vegyszer díj'!C11:C12)","v":0},{"$f":"SUM('Vegyszer díj'!C13:C14)","v":0}]
["Mindösszesen (18 hónapra vetítve)",{"$f":"SUM(B22:B23)","v":0},{"$f":"SUM(C22:C23)","v":0}]

{"sheet":"Karbantartási díj","index":1,"n_rows":23,"n_cols":3,"rows_kept":23,"cut":false,"hidden":false,"merged":[[0,0,2,2],[20,0,21,0],[20,1,21,1],[20,2,21,2],[22,0,23,0],[22,1,23,1],[22,2,23,2]]}
["Csak \"B\" oszlopot! szükséges kitölteni !!!!"]
[]
[]
[null,"Karbantartási díj/hó (nettó Ft)","Karbantartási díj/18 hó (nettó Ft)"]
["Vegyszeradagolási pontok tisztítása, tömítések cseréje (2 alkalom/hó)",null,{"$f":"B5*18","v":0}]
["Fotometriai vízkémia ellenőrzése: nitrit, nitrát, Fe, Mn, As stb.  (2 alkalom/hó) ",null,{"$f":"B6*18","v":0}]
["Pneumatikus rendszer ellenőrzése, hibák feltárása",null,0]
["Vegyszer csövek cseréje (1 alkalom/év)",null,0]
["Vízkezelő terem takarítása (1 alkalom/év)",null,0]
["Tartályok kézi visszamosatása, vizuális ellenőrzése",null,0]
["Feladó, visszamosó szivattyúk ellenőrzése",null,0]
["2 db tisztavíz medence leengedése + komplett takarítása (1 alkalom/év)",null,0]
["2 db hydrofortartályok leengedése+komplett takarítása (1 alkalom/év)",null,0]
["1 db nyersvízmedence leengedése+komplett takarítása (1 alkalom/év)",null,0]
["3 db aktívszén szűrőtöltetek fertőtlenítése (1 alkalom/év)",null,0]
["3 db katalitikus szűrők fertőtlenítése (1 alkalom/év)",null,0]
["Karbantartási napló vezetése (kiszállásonként)",null,0]
["Korlátlan kiszállás hiba esetén: (hétköznap 24, hétvégén/ünnepnapokon 48 órán belül)",null,0]
[]
[]
["Mindösszesen (nettó Ft)",{"$f":"SUM(B5:B18)","v":0},{"$f":"SUM(C5:C18)","v":0}]
[]
["Mindösszesen (bruttó Ft)",{"$f":"(B21*1.27)","v":0},{"$f":"C21*1.27","v":0}]

{"sheet":"Vegyszer díj","index":2,"n_rows":13,"n_cols":3,"rows_kept":13,"cut":false,"hidden":false,"merged":[[0,0,2,2],[10,0,11,0],[12,0,13,0],[10,1,11,1],[12,1,13,1],[10,2,11,2],[12,2,13,2]]}
["Csak \"B\" oszlopot! szükséges kitölteni !!!!"]
[]
[]
[" Szükséges vegyszermennyiség: 200 m3/nap, 6000 m3/hónapra van meghatározva!","1 havi adag","18 havi adag"]
["Vas-klorid",null,{"$f":"SUM(B5*18)","v":0}]
["Kálium-permanganát",null,{"$f":"SUM(B6*18)","v":0}]
["Törésponti klór",null,0]
["Utóklór",null,0]
[]
[]
["Mindösszesen (nettó Ft)",{"$f":"SUM(B5:B8)","v":0},{"$f":"SUM(C5:C8)","v":0}]
[]
["Mindösszesen (bruttó Ft)",{"$f":"SUM(B11*1.27)","v":0},{"$f":"SUM(C11*1.27)","v":0}]